Cogmind - Beta 15 @@@ ROGUE MODE // 2025.09.01 @ 18:29:48 Player: Hartman Result: Destroyed by Y-45 Defender with Beam Rifle Performance ------------- Evolutions (1) 500 Regions Visited (4) 800 Robots Destroyed (7) 35 Value Destroyed (117) 117 Prototype IDs (2) 40 Alien Tech Used (0) 0 Bonus (343) 343 TOTAL SCORE: 1835 Bonus ------- Follower Combat Kills 343 Cogmind --------- Core Integrity 0/400 Matter 290/300 Energy 87/250 System Corruption 1% Temperature Cool (9) Movement Core (150) Ox2 Location -9/Storage Parts ------- > --- POWER (2) -------- Ion Engine > --- PROPULSION (2) --- (None) > --- UTILITY (3) ------ Signal Interpreter ECM Suite > --- WEAPON (2) ------- (None) > --- INVENTORY (5) ---- Beam Rifle Peak State ------------ > --- POWER ------------ Ion Engine > --- PROPULSION ------- Hover Unit Flight Unit > --- UTILITY ---------- Signal Interpreter ECM Suite Light Armor Plating > --- WEAPON ----------- Beam Rifle Welding Torch > --- INVENTORY -------- Flight Unit [Rating: 9] Favorites ----------- Power Light Ion Engine Engine Light Ion Engine Propulsion Flight Unit Leg Aluminum Leg Wheel Compact Wheel Hover Unit Hover Unit Flight Unit Flight Unit Utility ECM Suite Device ECM Suite Storage Small Storage Unit Processor Signal Interpreter Protection Light Armor Plating Weapon Small Laser Energy Gun Small Laser Energy Cannon Particle Cannon Ballistic Gun Light Assault Rifle Special Weapon Welding Torch Special Melee Weapon Datajack Build | -11 -10 -10 -9 -9 ------- Run | Yrd Mat Min Mat Sto Slots Evolved 2 | . . . 2 . Power 1 | . . . 1 . Propulsion . | . . . . . Utility 1 | . . . 1 . Weapon . | . . . . . Parts Attached 30 | 7 4 1 5 13 Power 7 | 2 . . 2 3 Engine 7 | 2 . . 2 3 Core . | . . . . . Reactor . | . . . . . Propulsion 9 | 2 2 . 1 4 Treads . | . . . . . Leg 4 | . . . . 4 Wheel 2 | 2 . . . . Hover 1 | . . . 1 . Flight 2 | . 2 . . . Utility 5 | 1 1 1 . 2 Device 1 | . 1 . . . Storage 1 | 1 . . . . Processor 1 | . . 1 . . Hackware . | . . . . . Protection 2 | . . . . 2 Artifact . | . . . . . Weapon 9 | 2 1 . 2 4 Energy Gun 4 | 1 1 . . 2 Energy Cannon 2 | . . . . 2 Ballistic Gun 1 | 1 . . . . Ballistic Cannon . | . . . . . Launcher . | . . . . . Special Weapon 1 | . . . 1 . Impact Weapon . | . . . . . Slashing Weapon . | . . . . . Piercing Weapon . | . . . . . Special Melee Weapon 1 | . . . 1 . Unidentified Prototypes . | . . . . . Parts Lost 13 | . . . 1 12 Power 2 | . . . . 2 Propulsion 6 | . . . . 6 Utility 1 | . . . . 1 Weapon 4 | . . . 1 3 Highest Loss Streak 8 | . . . 1 8 To Critical Strikes . | . . . . . Average Backups 2 | 1 3 4 1 1 Power . | . 1 . . . Propulsion 1 | . . 2 . 1 Utility . | . . . . . Weapon . | . . 1 . . Tool/Special . | . . . . . Unused Backups 5 | . 1 . 3 1 Power 1 | . 1 . . . Propulsion 2 | . . . 2 . Utility 1 | . . . . 1 Weapon 1 | . . . 1 . Tool/Special . | . . . . . Average Slot Usage (%) 81 | . 89 95 74 70 Engine 12 | . 14 14 12 9 Leg 1 | . . . . 4 Wheel 2 | . 13 . . . Hover 2 | . . . 1 5 Flight 16 | . 14 28 20 5 Device 11 | . 11 14 11 11 Storage 1 | . 6 . . . Processor 8 | . . 9 11 11 Protection 2 | . . . . 8 Energy Gun 7 | . 14 14 3 1 Energy Cannon 1 | . . . . 6 Ballistic Gun 7 | . 14 14 3 . Special Weapon 2 | . . . 1 5 Special Melee Weapon 2 | . . . 10 . Peak Build Rating 9 | 6 7 7 8 9 Average Rating 6 | 3 6 6 7 7 On Entrance 4 | . 6 6 7 5 Naked Turns . | . . . . . Heaviest Build 15 | 10 12 7 11 15 Greatest Support 26 | 26 26 8 8 20 Greatest Overweight (x) 4 | 2 . . 1 4 Average Overweight (x) . | . . . . . Largest Inventory Capacity 8 | 8 8 5 5 5 Average Capacity 5 | 5 6 5 5 5 Most Carried 6 | 3 6 5 5 5 Average Carried 2 | 1 3 4 1 1 Final Capacity 8 | 8 5 5 5 5 Final Carried 5 | 2 5 4 1 1 Class Distribution -------------------- 83% | Mutant 14% | Commander-Mutant Dominant Class ---------------- Mutant | -10/Materials Mutant | -10/Mines Mutant | -9/Materials Commander-Mutant | -9/Storage Resources | -11 -10 -10 -9 -9 ----------- Run | Yrd Mat Min Mat Sto Matter Collected 509 | 241 48 27 30 163 Remotely . | . . . . . Salvage Created 233 | . 48 . . 185 Parts 15 | . 6 . . 9 Haulers Intercepted . | . . . . . Recyclers Shooed . | . . . . . Parts Field Recycled . | . . . . . Retrieved Matter . | . . . . . Parts Self-Destructed . | . . . . . Prevented . | . . . . . Kills | -11 -10 -10 -9 -9 ------- Run | Yrd Mat Min Mat Sto Combat Hostiles Destroyed 5 | . 3 . . 2 Guns 3 | . 3 . . . Cannons 1 | . . . . 1 AOE 1 | . . . . 1 Classes Destroyed 4 | . 1 . . 3 Recycler 1 | . . . . 1 Watcher 1 | . . . . 1 Swarmer 4 | . 3 . . 1 Sentry 1 | . . . . 1 Best Kill Streak 2 | . 2 . . 2 Combat Bots Only 2 | . 2 . . 2 Max Kills in Single Turn 1 | . 1 . . 1 Gunslinging . | . . . . . Exploded 1 | . . . . 1 Melee . | . . . . . Uniques/NPCs Destroyed . | . . . . . Combat | -11 -10 -10 -9 -9 -------- Run | Yrd Mat Min Mat Sto Hostile Shots Fired 187 | . 18 . 15 154 Missed 68 | . 3 . 7 58 Hits 119 | . 15 . 8 96 Melee 2 | . . . 2 . Projectile 117 | . 15 . 6 96 Critical Strikes 3 | . 2 . 1 . Damage Taken 1444 | . 124 . 155 1165 Core 439 | . 33 . 81 325 Absorbed by Shields . | . . . . . Redirected to Shielding 26 | . . . . 26 Core Remaining (%) 93 | 100 . 86 . . Volleys Fired 30 | . 13 . . 17 Largest 2 | . 2 . . 1 Hottest 68 | . 60 . . 68 Shots Fired 43 | . 26 . . 17 Gun 26 | . 26 . . . Cannon 17 | . . . . 17 Launcher . | . . . . . Special . | . . . . . Kinetic 13 | . 13 . . . Thermal 28 | . 13 . . 15 Explosive . | . . . . . Electromagnetic 2 | . . . . 2 Robot Hit Streak 3 | . 3 . . 3 Robot Miss Streak 4 | . 4 . . 3 Penetration Max . | . . . . . Secondary Targets 1 | . 1 . . . Max Gunslinging Chain 1 | . 1 . . . Shots Hit Robots 19 | . 12 . . 7 Core Hits 9 | . 4 . . 5 Critical Kills . | . . . . . Critical Parts Destroyed . | . . . . . Critical Strikes . | . . . . . Melee Attacks 1 | . . . 1 . Impact . | . . . . . Slashing . | . . . . . Piercing . | . . . . . Sneak Attacks . | . . . . . Combat Hostiles . | . . . . . Follow-up Attacks . | . . . . . Damage Inflicted 407 | . 128 . . 279 Guns 128 | . 128 . . . Cannons 171 | . . . . 171 Explosions 99 | . . . . 99 Melee . | . . . . . Ramming 9 | . . . . 9 Kinetic 42 | . 42 . . . Thermal 308 | . 86 . . 222 Explosive . | . . . . . Electromagnetic 48 | . . . . 48 Impact . | . . . . . Slashing . | . . . . . Piercing . | . . . . . Highest Corruption 1 | . 1 1 1 1 Average Corruption 1 | . 1 1 1 1 Corruption Purged . | . . . . . Corruption Blocked . | . . . . . Effects 8 | . 1 2 2 3 Matter Fused 2 | . . . 1 1 Energy Discharges 1 | . . 1 . . Parts Rejected 2 | . . . 1 1 Data Loss (minor) 1 | . . . . 1 Data Loss (major) 2 | . 1 1 . . Overload Shots . | . . . . . Overflow Damage . | . . . . . Projectiles . | . . . . . Explosions . | . . . . . Melee . | . . . . . Knockbacks . | . . . . . Impact . | . . . . . Kinetic . | . . . . . Secondary . | . . . . . Self-Inflicted Damage 33 | . . . . 33 Shots 1 | . . . . 1 Rammed 2 | . . . . 2 Targets Rammed 3 | . . . . 3 Kicked 1 | . . . . 1 Crushed . | . . . . . Highest Temperature 110 | . 54 . . 110 Average Temperature 32 | . 22 . . 38 Received Heat Transfer 438 | . 6 . 27 405 Siege Activations . | . . . . . Martial Activations . | . . . . . Shielding Activations . | . . . . . Robots Disrupted . | . . . . . Combat Hostiles . | . . . . . Robots Corrupted . | . . . . . Combat Hostiles . | . . . . . Parts Fried . | . . . . . Impact Corruptions . | . . . . . Robots Melted . | . . . . . Combat Hostiles . | . . . . . Parts Melted . | . . . . . Heat Transferred 572 | . 200 . . 372 Parts Sabotaged . | . . . . . Parts Stolen . | . . . . . Parts Stripped . | . . . . . Power Chain Reactions 1 | . . . . 1 Alert | -11 -10 -10 -9 -9 ------- Run | Yrd Mat Min Mat Sto Maximum Alert Level . | . . . . . Low Security (%) 100 | 100 100 100 100 100 Level 1 . | . . . . . Level 2 . | . . . . . Level 3 . | . . . . . Level 4 . | . . . . . Level 5 . | . . . . . High Security . | . . . . . Max Security . | . . . . . Peak Influence 104 | . 40 11 104 73 Initial 11 | . . 11 . . Average 19 | . 10 . 45 25 Influence Increases 651 | . 117 . 230 304 Destroy 0b10 Robot/C 320 | . 60 . 120 140 Destroy 0b10 Robot/NC 15 | . . . 5 10 Destroy Leader 112 | . 10 . 30 72 Allied During Kill 61 | . . . 19 42 Successful Hack 50 | . 17 . 10 23 Disable Machine 15 | . . . . 15 Destroy Structure 3 | . . . 1 2 Partial Spotted 75 | . 30 . 45 . Influence Decreases 651 | . 87 30 230 304 Entered New Map 19 | . . 19 . . Time Decay 416 | . 87 11 160 158 Lost Part 71 | . . . 10 61 Lost Ally 145 | . . . 60 85 Squads Dispatched 4 | . 1 . . 3 Investigation 2 | . 1 . . 1 Extermination . | . . . . . Reinforcement 2 | . . . . 2 Assault . | . . . . . Garrison . | . . . . . Intercept . | . . . . . Searches Triggered . | . . . . . Construction Impeded . | . . . . . Haulers Reinforced . | . . . . . Active Scanning Responses . | . . . . . Cargo Convoy Interrupts . | . . . . . Stealth | -11 -10 -10 -9 -9 --------- Run | Yrd Mat Min Mat Sto Distress Signals 4 | . 1 . . 3 Communications Jammed . | . . . . . Distress Signals . | . . . . . Times Spotted 55 | . 12 2 9 32 Peak Tracking Total 8 | . 4 2 4 8 Tactical Retreats 13 | . 3 1 2 7 Traps | -11 -10 -10 -9 -9 ------- Run | Yrd Mat Min Mat Sto Traps Triggered 1 | . . . 1 . Indirectly . | . . . . . Trap Hack Attempts . | . . . . . Triggered . | . . . . . Disarmed . | . . . . . Reprogrammed . | . . . . . Reused . | . . . . . Traps Extracted . | . . . . . Installed . | . . . . . Triggered . | . . . . . Machines | -11 -10 -10 -9 -9 ---------- Run | Yrd Mat Min Mat Sto Machines Disabled 1 | . . . . 1 Max in Single Turn 1 | . . . . 1 Machines Repaired . | . . . . . Machines Dismantled . | . . . . . Machines Sabotaged . | . . . . . Overloaded Fab Kills . | . . . . . Hacking | -11 -10 -10 -9 -9 --------- Run | Yrd Mat Min Mat Sto Machines Accessed 14 | . 6 . 3 5 Terminals 11 | . 4 . 3 4 Fabricators . | . . . . . Repair Stations . | . . . . . Recycling Units 3 | . 2 . . 1 Scanalyzers . | . . . . . Garrison Access . | . . . . . Total Hacks 43 | . 18 . 10 15 Successful 22 | . 12 . 4 6 Failed 21 | . 6 . 6 9 Catastrophic 2 | . . . 1 1 Database Lockouts . | . . . . . Manual . | . . . . . Terminals 34 | . 12 . 10 12 Fabricators . | . . . . . Repair Stations . | . . . . . Recycling Units 9 | . 6 . . 3 Scanalyzers . | . . . . . Garrison Access . | . . . . . Terminal Hacks 17 | . 8 . 4 5 Record 3 | . 2 . . 1 Prototype ID Bank 1 | . 1 . . . Branch Access Points 1 | . . . 1 . Emergency Access Points 2 | . 2 . . . Alert Level 1 | . . . 1 . Locate Traps 2 | . 1 . . 1 Dispatch Records 1 | . 1 . . . Maintenance Status 1 | . . . . 1 Investigation Status 1 | . . . 1 . Zone Layout 4 | . 1 . 1 2 Fabricator Hacks . | . . . . . Repair Station Hacks . | . . . . . Recycling Unit Hacks 5 | . 4 . . 1 Process 1 | . 1 . . . Report Inventory 3 | . 2 . . 1 Retrieve Matter 1 | . 1 . . . Scanalyzer . | . . . . . Garrison Access Hacks . | . . . . . Unauthorized Hacks . | . . . . . Terminals . | . . . . . Fabricators . | . . . . . Repair Stations . | . . . . . Recycling Units . | . . . . . Scanalyzers . | . . . . . Garrison Access . | . . . . . Data Cores Recovered . | . . . . . Used . | . . . . . Hacking Detections 13 | . 5 . 3 5 Full Trace Events 2 | . 1 . . 1 Feedback Events 1 | . 1 . . . Corruption 1 | . 1 . . . Feedback Blocked . | . . . . . Robot Schematics Acquired . | . . . . . Robots Built . | . . . . . Authchips . | . . . . . Time . | . . . . . Total Robot Build Rating . | . . . . . Part Schematics Acquired . | . . . . . Parts Built . | . . . . . Authchips . | . . . . . Time . | . . . . . Total Part Build Rating . | . . . . . Parts Repaired . | . . . . . Time . | . . . . . Parts Recycled . | . . . . . Recycled Matter 7 | . 7 . . . Retrieved Matter 7 | . 7 . . . Retrieved Components . | . . . . . Parts Scanalyzed . | . . . . . Part Schematics Acquired . | . . . . . Parts Damaged . | . . . . . Bothacking | -11 -10 -10 -9 -9 ------------ Run | Yrd Mat Min Mat Sto Used RIF Installer . | . . . . . Robots Hacked . | . . . . . Non-combat . | . . . . . Combat . | . . . . . Robot Hacks Applied . | . . . . . Relay Couplers Released . | . . . . . Fabnet Peak Effective % . | . . . . . Robots Rewired . | . . . . . Allies Hacked . | . . . . . Hacks Repelled . | . . . . . Allies | -11 -10 -10 -9 -9 -------- Run | Yrd Mat Min Mat Sto Total Allies 15 | . . 5 . 10 Largest Group 8 | . . 4 3 8 Highest-Rated Group 72 | . . 70 62 72 Highest-Rated Ally 31 | . . 31 31 16 Total Orders 2 | . . 2 . . ROAM 1 | . . 1 . . FOLLOW 1 | . . 1 . . Ally Attacks 115 | . . 10 35 70 Total Damage 1075 | . . 67 409 599 Kills 14 | . . . 7 7 Allies Corrupted . | . . . . . Allies Melted . | . . . . . Intel | -11 -10 -10 -9 -9 ------- Run | Yrd Mat Min Mat Sto Active Infowar (turns) 1367 | . 252 403 328 384 ECM 1367 | . 252 403 328 384 Robot Analysis Total . | . . . . . Derelict Logs Recovered 1 | . . 1 . . Drone Launches . | . . . . . Drone Recoveries . | . . . . . Exploration | -11 -10 -10 -9 -9 ------------- Run | Yrd Mat Min Mat Sto Turns Passed 1566 | 51 319 403 340 453 Spaces Moved 1694 | 46 439 649 290 270 Core 45 | 21 . . . 24 Treads . | . . . . . Legs 73 | . . . . 73 Wheels 152 | 25 127 . . . Hover 221 | . . . 50 171 Flight 1203 | . 312 649 240 2 Fastest Speed 37 | 50 37 37 37 60 Average Speed 64 | 78 52 37 80 128 Slowest Speed 250 | 150 90 37 120 250 Overloaded Moves . | . . . . . Propulsion Burnouts . | . . . . . Robots Hopped 17 | . 8 9 . . Potential Cave-ins . | . . . . . Cave-ins Triggered . | . . . . . Exploration Rate (%) 44 | 4 59 97 21 42 Regions Visited 4 Branch Regions 2 Pre-discovered Areas 1 | . . 1 . . Known Exits Taken 2 | . . 1 1 . Unknown Exits Taken 2 | 1 1 . . . Scrap Searched 1 | . . 1 . . Spaces Dug . | . . . . . Terrain Destroyed . | . . . . . Melee . | . . . . . Projectile . | . . . . . AOE . | . . . . . Terrain Rammed . | . . . . . Walls Destroyed . | . . . . . Machines Disabled . | . . . . . Actions | -11 -10 -10 -9 -9 --------- Run | Yrd Mat Min Mat Sto Total 2117 | 61 498 802 399 357 Wait 316 | . 36 162 92 26 Move 1656 | 45 422 630 289 270 Hop 17 | . 8 9 . . Pick Up 38 | 8 9 . 4 17 Fast Attach . | . . . . . Attach 29 | 7 3 1 4 14 Detach 2 | 1 . . 1 . Swap 6 | . 1 . 2 3 Drop 18 | . 6 . 6 6 Fire 30 | . 13 . . 17 Melee 1 | . . . 1 . Ram 2 | . . . . 2 Kick 1 | . . . . 1 Crush . | . . . . . Escape Stasis . | . . . . . Rewire 1 | . . . . 1 Trap . | . . . . . Miscellaneous . | . . . . . Route ------- -11/Scrapyard -10/Materials (discovered 3 exits: *Mat x2 / [*Min]) -10/Mines (discovered 2 exits: *Mat x2) -9/Materials (discovered 4 exits: Min x2 / *Sto x2) -9/Storage History --------- Turn | Location | Event 12 | -11/Scrapyard | Discovered new exit (range 15) 52 | -11/Scrapyard | Entered Materials 53 | -10/Materials | Met a group of wandering Federalists 129 | -10/Materials | Discovered new exit (range 15) 285 | -10/Materials | Discovered new exit (range 14) 305 | -10/Materials | Build established: Mutant 366 | -10/Materials | Discovered new exit (range 9) 371 | -10/Materials | Entered Mines 435 | -10/Mines | Assisted by bots powering up and referring to "LRC-V3" 483 | -10/Mines | Discovered new exit (range 7) 486 | -10/Mines | Identified exit to Materials 535 | -10/Mines | Discovered exit to Materials (range 15) 544 | -10/Mines | Received a Rocket Launcher from a helpful Derelict 774 | -10/Mines | Entered Materials 774 | -9/Materials | Accompanied by 3 allies 774 | -9/Materials | Evolved 2 slots: Power x1, Utility x1 779 | -9/Materials | Led the pair of lost Derelicts to an unsafe place 919 | -9/Materials | Identified exit to Mines 919 | -9/Materials | Identified exit to Storage 1114 | -9/Materials | Entered Storage 1161 | -9/Storage | Assisted by bots powering up and referring to "LRC-V3" 1228 | -9/Storage | Lost 5 allies 1387 | -9/Storage | Lost 3 parts (2n1w) 1455 | -9/Storage | Lost 4 allies 1488 | -9/Storage | Core integrity fell below 50% 1529 | -9/Storage | Core integrity fell below 20% 1567 | -9/Storage | Destroyed by Y-45 Defender with Beam Rifle Last Messages --------------- 01520_ Lgt. EM Pulse Cannon destroyed. 01523_ Acquired 1 matter. 01524_ Acquired 14 matter. 01542_ Dropped Power Shielding. 01545_ Flight Unit destroyed. 01551_ K-01 Serf collects debris. 01553_ Acquired 12 matter. 01554_ K-01 Serf collects debris. 01555_ R-06 Scavenger collects Heat Sink. 01557_ R-06 Scavenger inserts Heat Sink into recycling unit. 01558_ K-01 Serf collects debris. 01560_ R-06 Scavenger collects Terrain Scan Processor. 01560_ Acquired Beam Rifle. 01562_ Ion Engine destroyed. 01564_ Aluminum Leg destroyed. 01564_ Acquired Ion Engine. 01566_ R-06 Scavenger collects Lgt. Armor Plating. Map ----- +----------------------------------------------------+ | | | | | | | | | | | | | | | | | ?????????????????????????????????????????????????? | | ?????????????????????????????????????????????????? | | ?????????????????????????????????????????????????? | | ??????????????#??##??????????????????????????????? | | ?????????????? ##T###????????????????????????????? | | ????????????? #????????????????????????????? | | ????????????""" ###??????????????????????????? | | ???????????#""" """??????????????????????????? | | ???????????#""" T???????????????????????????? | | ???????????# "????????????????????????????? | | ???????????#""" #????????????????????????????? | | ???????????#""" #????????????????????????????? | | ??##########""" #?????????#"##???????????????? | | ??# ? #?? ??#######??# T#???????????????? | | ??# """? #####+##### ####+#########????????? | | ??# "]"""" # ########## | | ??#= "]" + Y ! %% # | | ??#= ! "[ # g% @%=o % # """ | | ??# [ "*" ### ####### g !########## # """" " | | ??#[%! """ #?#!#???#####g#####??????# + " "" " | | ??# ! #?# #???# !r % ! #??????# # " "" " | | ??# #?# #???# % % #??????# # " """" | | ??##########?# ##### % ####???# # """ | | ?????????????# / """ """ """#???# # | | ?????????????# ##### """ """ Y"#??## ^^########## | | ?????????????# #???#*""" """ """#??# ^^ #???????? | | ?????????????# #???# ####??# #???????? | | ?????????????# #???# #?????# #???????? | | ?????????????# #???# #########?????# #???????? | | ?????????????# #???###???????#####?# #???????? | | ?????????????# #??????????####"T"#### ##???????? | | ?????????????? ???????????# # #????????? | | ?????????????? ???????????# # #????????? | | ?????????????? ???####????# *[# #????????? | | ?????????????? ???# ###### !%+ #????????? | | ?????????????? ???# %= + """ """!# #????????? | | ???????????######## ###### """ """ # #????????? | | ???????????# #=%###### """ """ # #????????? | | ???????????# #=%## ! # # #????????? | | ???????????# #!=#= % ####### ### ########?? | | ???????????# #%[+%! ########### # ?? | | ???????????# /=!#! # """"" # # ?? | +----------------------------------------------------+ Best States ------------- Heat Dissipation 28 Energy Generation 15 Energy Capacity 275 Matter Stores 300 Matter Capacity 300 Sight Range 16 Terrain Scan Density 10 ECM Strength 1 Armor Coverage 150 Power Shielding 33 Evasion (%) 62 Item Schematics ----------------- None Robot Schematics ------------------ None Fabricated ------------ Nothing Repaired ---------- Nothing Alien Tech Used ----------------- None Achievements -------------- None Challenges ------------ None Game ------ Seed MassThermicShielding Manual? 0 Play Time 00:43:07 Cumulative 37.6 hours Start 2025.08.27 @ 16:33:46 End 2025.09.01 @ 18:29:48 Sessions 3 Manual Loads 0 Difficulty Rogue Special Mode None Game No. 35 Rogue 35 Adventurer 0 Explorer 0 Win Type - Total 0 Types 0/0/0/0/0/0/0/0/0/0 Lore% 15 Gallery% 27 Achievement% 28 Wizard Run 0 Options --------- Layout 1 ASCII 0 Keyboard 0 Movement Numpad Keybinds 0 Fullscreen 1 Font 24/Smallcaps Map View 50x35 Zoom Use 0% Tactical HUD 1 Map Filters NONE Filters NONE Steam 1 RUN: b969cf07-d0a5-4ded-99af-841a66031203